bitfinex/quotes_ETHUSD_20240924
["timestamp","ask_amount","ask_price","bid_price","bid_amount"]
[1727165010989,7.06822053,2651.7,2651.6,0.00230299]
[1727165011192,5.36694339,2651.7,2651.6,0.00230299]
[1727165012568,3.77116,2651.7,2651.6,0.00230299]
[1727165012766,4.60291,2651.8,2651.6,0.00230299]
[1727165013068,0.8318,2651.8,2651.6,0.00230299]
[1727165014592,3.77057,2652.2,2651.6,0.76080299]
[1727165014756,8.28748791,2652.2,2651.6,0.00230299]
[1727165015088,3.77059,2652.1,2651.6,3.77360299]
[1727165015390,4.51692791,2652.2,2651.6,3.77360299]
[1727165015765,8.28747791,2652.2,2651.6,3.77360299]
[1727165015980,4.51692791,2652.2,2651.7,3.77115]
[1727165016184,4.51692791,2652.2,2651.6,3.77360299]
[1727165016367,4.51692791,2652.2,2651.6,3.77352299]
[1727165016773,4.51692791,2652.2,2651.6,7.54474299]
[1727165017191,0.74639791,2652.2,2651.8,3.77101]
[1727165017401,0.8067,2652.4,2651.8,3.77101]
[1727165017601,7.4,2652.6,2651.9,0.83391184]
[1727165017802,0.8067,2652.7,2652.3,3.77021]
[1727165018107,0.8067,2652.7,2652.0,0.07540443]
[1727165018269,8.2067,2653.0,2652.5,7.53985]
[1727165018473,0.8067,2653.3,2652.8,3.76957]
[1727165019783,0.8067,2653.3,2652.6,3.76984]
[1727165019784,3.76926,2653.1,2652.6,3.76984]
[1727165020094,3.76926,2653.1,2652.2,4.5289]
[1727165020095,3.76949,2652.9,2652.2,4.5289]
[1727165020300,7.53907,2652.9,2652.2,8.29924]
[1727165020595,3.76971,2652.8,2652.2,4.52887]
[1727165020963,3.76949,2652.9,2652.2,4.52887]
[1727165020964,7.53904,2652.9,2652.3,3.77022]
[1727165021160,3.76949,2652.9,2652.3,3.77022]
[1727165021895,7.53904,2652.9,2652.3,3.77022]
[1727165022099,3.76967,2652.8,2652.2,4.52887]
[1727165022261,0.8067,2652.7,2652.2,3.77037]
[1727165022594,4.57644,2652.7,2652.2,3.77037]
[1727165023101,0.8067,2652.7,2652.3,3.7703]
[1727165023295,0.8067,2653.0,2652.4,3.77006]
[1727165023502,0.8067,2653.0,2652.3,3.7703]
[1727165023687,3.76962,2652.8,2652.3,3.7703]
[1727165023896,4.57613,2653.0,2652.3,3.7703]
[1727165024064,3.76949,2652.9,2652.3,3.7703]
[1727165024465,5.773743,2653.0,2652.4,3.77006]
[1727165025163,9.543143,2653.0,2652.4,3.77006]
[1727165025394,5.773713,2653.0,2652.4,3.77006]
[1727165025875,0.8067,2653.0,2652.6,3.76986]
[1727165026388,3.76919,2653.1,2652.6,3.76986]
[1727165026987,11.9501,2653.2,2652.4,8.32762]
[1727165026988,3.76932,2653.0,2652.4,8.32762]
[1727165027296,3.76932,2653.0,2652.5,3.77002]
[1727165028007,11.9501,2653.2,2652.5,3.77002]
[1727165028183,4.96423,2653.1,2652.5,3.77002]
[1727165028800,1.19501,2653.1,2652.4,0.7875]
[1727165028968,1.19501,2653.1,2652.6,7.5396]
[1727165029174,0.781,2653.2,2652.8,3.76959]
[1727165029472,0.781,2653.2,2652.8,3.7695]
[1727165030308,0.39455136,2653.4,2652.8,3.84348998]
[1727165030520,0.39455136,2653.4,2653.1,3.76907]
[1727165031015,4.54927,2653.8,2653.1,3.76907]
[1727165031567,4.54927,2653.8,2653.3,3.76889]
[1727165032305,4.54927,2653.8,2653.1,3.76906]
[1727165033487,4.54927,2653.8,2653.2,3.76901]
[1727165033690,6.24259749,2653.8,2653.2,3.76901]
[1727165034185,6.24259749,2653.8,2653.3,7.53761]
[1727165034186,0.781,2653.8,2653.3,7.53761]
[1727165034387,0.781,2653.8,2653.5,3.76855]
[1727165034995,0.781,2653.8,2653.6,3.76841]
[1727165035198,0.43056424,2653.9,2653.8,3.76818]
[1727165035674,0.43056424,2653.9,2653.8,4.521829]
[1727165035880,0.03606031,2653.9,2653.8,4.521829]
[1727165037375,0.03606031,2653.9,2653.8,4.59718646]
[1727165037575,0.03606031,2653.9,2653.8,4.521829]
[1727165040804,0.03606031,2653.9,2653.8,5.39888371]
[1727165041115,0.03606031,2653.9,2653.8,5.39888]
[1727165041324,0.03606031,2653.9,2653.8,8.39888]
[1727165041479,0.03606031,2653.9,2653.8,9.3555581]
[1727165041679,0.03606031,2653.9,2653.8,8.873529]
[1727165043556,0.03606031,2653.9,2653.8,9.3555581]
[1727165045159,0.03606031,2653.9,2653.8,8.873529]
[1727165048117,0.03606031,2653.9,2653.8,5.873529]
[1727165048316,0.03606031,2653.9,2653.8,4.521829]
[1727165048647,0.03606031,2653.9,2653.8,3.76818]
[1727165049224,0.03606031,2653.9,2653.8,3.84353039]
[1727165051734,0.03606031,2653.9,2653.8,8.67725949]
[1727165051923,0.03606031,2653.9,2653.8,8.6019091]
[1727165052345,0.03606031,2653.9,2653.8,10.22235371]
[1727165054949,0.03606031,2653.9,2653.8,10.69252527]
[1727165055263,0.03606031,2653.9,2653.8,38.36875427]
[1727165057079,0.03606031,2653.9,2653.8,34.34653471]
[1727165057372,0.03606031,2653.9,2653.8,15.18264371]
[1727165058073,0.03606031,2653.9,2653.8,14.94749871]
[1727165058371,0.03606031,2653.9,2653.8,18.06131897]
[1727165062374,0.03606031,2653.9,2653.8,18.53149053]
[1727165062534,0.0383633,2654.7,2653.8,18.53149053]
[1727165062743,0.0383633,2654.7,2654.6,8.23256026]
[1727165062979,0.0383633,2654.7,2654.6,11.23256026]
[1727165065547,0.0383633,2654.7,2654.6,10.43086026]
[1727165065886,0.0383633,2654.7,2654.6,3.76704]
[1727165066181,0.0383633,2654.7,2654.6,3.84237002]
[1727165066779,0.0383633,2654.7,2654.6,3.76704]
[1727165067099,0.0383633,2654.7,2654.2,3.0]
[1727165067100,0.7554,2654.6,2654.2,3.0]
[1727165067245,0.7554,2654.6,2654.5,3.76717]
[1727165068186,0.7554,2654.6,2654.5,3.76718]
[1727165069702,0.7554,2654.6,2654.4,3.76722]
[1727165071059,0.7554,2654.6,2654.4,7.53447]
[1727165071598,0.7554,2654.6,2654.5,3.76718]
[1727165071751,0.0383633,2654.7,2654.5,3.94260108]
[1727165072095,0.0383633,2654.7,2654.6,7.78721156]
[1727165072298,0.0383633,2654.7,2654.6,7.39236285]
[1727165073280,0.0383633,2655.5,2654.7,1.3547]
[1727165073480,0.0383633,2655.5,2655.4,6.87973026]
[1727165073816,0.0383633,2655.5,2655.4,6.95503784]
[1727165074870,0.0383633,2655.5,2655.4,3.76591]
[1727165076667,0.0383633,2655.5,2655.1,3.76624]
[1727165076668,0.8229,2655.4,2655.1,3.76624]
[1727165076866,0.8229,2655.4,2654.6,4.57163]
[1727165076867,3.76685,2654.8,2654.2,3.7675]
[1727165077127,0.8229,2654.9,2654.4,3.76723]
[1727165077325,2.2630495,2654.9,2654.3,3.76738]
[1727165077608,0.8229,2654.8,2654.0,3.76778]
[1727165077840,0.8229,2654.3,2653.7,3.7682]
[1727165077968,3.76764,2654.2,2653.5,3.76852]
[1727165078299,8.3203536,2654.2,2653.5,3.76852]
[1727165078502,4.68209872,2654.1,2653.5,3.76852]
[1727165078712,0.7849636,2654.2,2653.5,3.76852]
[1727165078898,0.7849636,2654.1,2653.5,3.76852]
[1727165079098,0.7849636,2654.1,2653.6,3.76844]
[1727165079303,0.7849636,2654.1,2653.7,6.95747151]
[1727165079472,0.7849636,2654.2,2653.5,3.76855]
[1727165079667,0.7849636,2654.1,2653.5,3.76855]
[1727165079924,0.7849636,2654.1,2653.5,6.88237026]
[1727165079925,1.69964521,2654.1,2653.5,6.88237026]
[1727165080130,0.7849636,2654.1,2653.7,3.11382026]
[1727165080324,1.69995698,2654.1,2653.5,3.7685]
[1727165080529,0.7849636,2654.2,2653.6,0.07536125]
[1727165080824,1.6078636,2654.3,2653.7,3.76831]
[1727165081008,1.69990965,2654.2,2653.7,3.76831]
[1727165081210,0.7849636,2654.2,2653.7,3.76831]
[1727165081511,1.70011595,2654.2,2653.7,3.76831]
[1727165082136,0.7849636,2654.2,2653.7,3.76831]
[1727165082292,1.70017068,2654.1,2653.7,3.76831]
[1727165082632,0.7849636,2654.2,2653.7,3.76831]
[1727165082793,1.70014984,2654.2,2653.6,3.84380707]
[1727165083388,0.7849636,2654.1,2653.6,3.84380707]
[1727165084166,0.7849636,2654.1,2653.6,3.84371707]
[1727165084621,1.70014839,2654.1,2653.6,3.84371707]
[1727165084808,0.7849636,2654.1,2653.6,3.84371707]
[1727165085009,0.7849636,2654.2,2653.7,3.84364804]
[1727165085198,1.70008186,2654.2,2653.7,3.84364804]
[1727165085396,1.70008186,2654.2,2653.7,3.76829]
[1727165086988,0.7849636,2654.2,2653.7,3.76829]
[1727165087192,1.70015405,2654.2,2653.7,3.76829]
[1727165088330,1.70015405,2654.2,2653.7,4.68721319]
[1727165088514,1.70015405,2654.2,2653.7,4.7625702]
[1727165089330,1.70015405,2654.2,2653.7,4.68721319]
[1727165090333,1.70015405,2654.2,2653.7,3.76829]
[1727165090531,1.70015405,2654.2,2653.7,3.84364699]
[1727165090733,1.70015405,2654.2,2653.8,3.76816]
[1727165090920,0.7849636,2654.5,2654.0,3.76788]
[1727165091261,1.98232571,2654.6,2654.1,0.07534703]
[1727165091431,1.98232571,2654.6,2654.1,3.84306703]
[1727165091930,0.91497815,2654.5,2654.1,3.84306703]
[1727165092230,4.5521636,2654.5,2653.9,3.76802]
[1727165092407,2.39266872,2654.4,2653.9,3.76802]
[1727165092609,1.69997161,2654.3,2653.9,3.76802]
[1727165092809,0.7849636,2654.4,2653.9,3.76802]
[1727165093016,1.70003644,2654.4,2653.9,3.76802]
[1727165093409,1.70003644,2654.4,2653.8,3.84345702]
[1727165093611,1.70003644,2654.4,2653.9,3.76799]
[1727165094233,1.70003644,2654.4,2653.8,3.76811]
[1727165094403,1.70003644,2654.4,2653.7,3.76829]
[1727165094404,0.7849636,2654.3,2653.7,3.76829]
[1727165094738,5.46761113,2654.3,2653.7,3.76829]
[1727165094910,4.5525036,2654.3,2653.7,3.76829]
[1727165095110,4.5525036,2654.3,2653.7,7.53653]
[1727165095296,4.5525036,2654.3,2653.7,3.76824]
[1727165095501,0.9151241,2654.2,2653.7,3.76824]
[1727165095703,4.5525036,2654.3,2653.7,3.76823]
[1727165096643,0.7849636,2654.3,2654.0,3.7678]
[1727165096828,0.7849636,2654.5,2654.0,3.7678]
[1727165097135,0.7849636,2654.4,2654.0,3.7678]
[1727165097302,3.76741,2654.4,2653.8,3.84343671]
[1727165097506,0.7849636,2654.4,2653.9,3.76792]
[1727165097701,1.69999157,2654.4,2653.9,3.76792]
[1727165097946,8.3194236,2654.5,2653.9,3.76792]
[1727165098242,1.69999528,2654.4,2653.9,3.76792]
[1727165098444,5.46736528,2654.4,2653.8,3.76808]
[1727165098641,1.70012219,2654.3,2653.8,7.53619]
[1727165098846,5.46760219,2654.3,2653.8,3.76808]
[1727165099145,1.70014732,2654.2,2653.8,3.76808]
[1727165099306,0.7849636,2654.2,2653.8,3.76808]
[1727165099507,5.46779946,2654.2,2653.7,3.76832]
[1727165099720,0.7849636,2654.2,2653.7,3.76832]
[1727165099919,5.46790154,2654.2,2653.7,3.76832]
[1727165100139,4.5525836,2654.2,2653.7,3.76832]
[1727165100339,1.7002806,2654.1,2653.7,3.76832]
[1727165100544,0.7849636,2654.2,2653.8,3.76817]
[1727165100855,2.87771867,2654.3,2653.9,3.76803]
[1727165101004,2.87771867,2654.3,2653.8,3.76817]
[1727165101005,1.70025055,2654.2,2653.8,3.76817]
[1727165101207,0.7849636,2654.2,2653.8,3.76817]
[1727165101408,1.70038289,2654.2,2653.8,3.76817]
[1727165101958,1.70038289,2654.2,2653.8,3.76807]
[1727165102147,0.7849636,2654.2,2653.8,3.76807]
[1727165102310,1.70044308,2654.2,2653.8,3.76807]
[1727165103664,1.70044308,2654.1,2653.8,3.76807]
[1727165103824,0.7849636,2654.1,2653.8,3.76807]
[1727165104027,0.7849636,2654.2,2653.8,3.76807]
[1727165104249,1.70051641,2654.2,2653.8,3.76807]
[1727165104546,1.70051641,2654.2,2653.9,3.76802]
[1727165104841,0.7849636,2654.2,2653.9,3.76802]
[1727165105042,0.7849636,2654.2,2654.0,3.76787]
[1727165105043,1.70058178,2654.2,2654.0,3.76787]
[1727165105211,0.7849636,2654.2,2653.9,3.76794]
[1727165105412,0.7849636,2654.3,2653.9,3.76794]
[1727165105642,1.70064393,2654.3,2654.0,7.53578]
[1727165105809,0.7849636,2654.3,2654.0,3.76789]
[1727165106012,0.7849636,2654.3,2654.0,3.76782]
[1727165106510,1.5845636,2654.2,2653.8,4.144897]
[1727165106707,0.91580572,2654.1,2653.8,7.53619]
[1727165106910,1.5845636,2654.2,2653.8,3.76809]
[1727165107225,1.70076818,2654.1,2653.9,3.76797]
[1727165107420,1.5845636,2654.2,2653.9,3.76797]
[1727165107846,0.7849636,2654.2,2654.0,3.76779]
[1727165108169,0.7849636,2654.3,2653.9,3.76797]
[1727165108313,0.7849636,2654.2,2654.0,3.76782]
[1727165108649,0.7849636,2654.3,2654.1,3.76775]
[1727165108815,0.7849636,2654.3,2654.0,3.76782]
[1727165109549,1.70089782,2654.3,2654.1,3.76775]
[1727165109722,0.7849636,2654.3,2654.1,3.76775]
[1727165109928,0.7849636,2654.3,2654.0,3.76782]
[1727165110123,0.7849636,2654.3,2654.1,3.76763]
[1727165110424,0.91594554,2654.4,2654.1,3.76763]
[1727165110425,0.7849636,2654.4,2654.1,7.53528]
[1727165110756,1.70092174,2654.4,2654.0,4.53978]
[1727165110914,0.7849636,2654.4,2654.0,4.53978]
[1727165111267,1.70093233,2654.4,2654.0,4.53978]
[1727165111557,0.7849636,2654.3,2654.0,4.53978]
[1727165111723,4.5524636,2654.3,2653.8,4.54006]
[1727165111923,0.7849636,2654.1,2653.8,3.76816]
[1727165112125,0.7996,2654.0,2653.8,3.76816]
[1727165112328,1.5845636,2654.0,2653.8,3.76816]
[1727165112850,0.7996,2654.0,2653.8,3.76816]
[1727165113052,0.7996,2654.0,2653.7,7.53652]
[1727165113250,1.5845636,2654.0,2653.7,3.76821]
[1727165114059,0.7849636,2653.8,2653.3,0.7719]
[1727165114349,0.7849636,2653.8,2653.5,3.76853]
[1727165114868,0.7849636,2653.9,2653.7,7.53654]
[1727165115150,0.7996,2654.0,2653.7,3.76822]
[1727165115448,1.5845636,2654.0,2653.7,7.53644]
[1727165115648,1.5845636,2654.0,2653.7,3.76822]
[1727165116352,0.7849636,2654.1,2653.7,4.1525786]
[1727165116555,1.70131436,2654.1,2653.8,3.7681]
[1727165116726,0.7849636,2654.2,2653.8,3.7681]
[1727165117052,0.7849636,2654.2,2653.7,4.1525786]
[1727165117053,0.7849636,2654.2,2653.9,3.76803]
[1727165117257,1.7012797,2654.2,2653.9,3.76803]
[1727165117648,1.7012797,2654.1,2653.9,3.76803]
[1727165117856,0.7849636,2654.2,2653.9,3.76803]
[1727165118380,0.7849636,2654.1,2653.9,3.76803]
[1727165118669,1.5891636,2654.3,2653.9,4.63611186]
[1727165118875,1.70135914,2654.2,2653.9,7.53599]
[1727165119077,0.7849636,2654.2,2653.9,7.53599]
[1727165119540,1.70135902,2654.2,2654.0,3.76788]
[1727165119741,0.7849636,2654.2,2654.0,3.76788]
[1727165119982,1.5891636,2654.3,2654.0,3.76788]
[1727165120442,0.91647842,2654.2,2654.0,3.76788]
[1727165120638,1.70215645,2654.1,2653.9,3.76796]
[1727165120870,0.7849636,2654.1,2654.0,3.76789]
[1727165121051,0.7849636,2654.1,2653.9,7.53588]
[1727165121276,1.70215374,2654.1,2653.9,3.76794]
[1727165121479,1.70293567,2654.0,2653.9,3.76794]
[1727165121771,0.7849636,2654.0,2653.9,3.76794]
[1727165122544,2.14194735,2654.0,2653.8,3.76816]
[1727165122777,2.14365206,2653.9,2653.7,3.7683]
[1727165122987,3.72665325,2653.8,2653.7,3.7683]
[1727165123276,2.50097326,2653.8,2653.6,3.7684]
[1727165123486,2.10522685,2653.7,2653.6,3.7684]
[1727165123681,2.14392843,2653.7,2653.6,3.7684]
[1727165123994,2.14392843,2653.7,2653.4,4.52886]
[1727165123995,1.18744583,2653.7,2653.4,3.76863]
[1727165124279,1.18749777,2653.5,2653.4,3.76863]
[1727165124444,2.50245503,2653.5,2653.4,3.76863]
[1727165124645,3.72853121,2653.5,2653.3,3.76888]
[1727165125175,0.8042,2653.3,2652.8,3.76948]
[1727165125377,0.8042,2653.3,2652.9,3.76943]
[1727165125782,0.8042,2653.3,2653.0,3.76922]
[1727165125958,1.18757433,2653.4,2653.1,3.76909]
[1727165126158,1.22604606,2653.2,2652.8,3.76958]
[1727165126385,1.22604606,2653.2,2652.7,3.76965]
[1727165126588,1.22604606,2653.2,2652.8,3.7696]
[1727165127078,1.58300119,2653.0,2652.7,3.76965]
[1727165127278,1.58300119,2653.0,2652.8,3.76959]
[1727165127671,1.58300119,2653.0,2652.9,3.76945]
[1727165127987,1.58300119,2653.0,2652.7,3.76964]
[1727165128188,1.58300119,2653.0,2652.8,3.76946]
[1727165129088,1.58300119,2653.0,2652.9,3.76945]
[1727165131603,0.7879,2652.9,2652.4,0.0383633]
[1727165131748,0.7879,2652.9,2652.4,3.8084433]
[1727165131950,1.1845909,2652.6,2652.4,0.0383633]
[1727165132179,1.1845909,2652.6,2652.5,3.77002]
[1727165132448,1.1845909,2652.6,2652.4,0.8689633]
[1727165132653,1.1845909,2652.6,2652.4,0.0383633]
[1727165133051,0.7879,2652.5,2652.4,0.0383633]
[1727165137494,5.2108425,2652.5,2652.4,0.0383633]
[1727165138290,1.4408225,2652.5,2652.4,0.0383633]
[1727165138500,0.7879,2652.7,2652.4,0.0383633]
[1727165138651,3.76996,2652.6,2652.4,0.0383633]
[1727165138853,5.34450407,2652.7,2652.4,0.0383633]
[1727165139051,0.78684407,2653.0,2652.9,3.76945]
[1727165139278,0.78684407,2653.5,2652.9,3.4923741]
[1727165139498,4.55626,2653.7,2653.1,3.76916]
[1727165139697,0.7879,2653.7,2653.2,3.76903]
[1727165139988,0.7879,2653.7,2653.2,3.76894]
[1727165139989,1.18236517,2653.7,2653.2,3.76894]
[1727165140996,1.18236517,2653.7,2653.3,3.76888]
[1727165141798,1.18236517,2653.7,2653.2,3.76902]
[1727165142203,1.18236517,2653.7,2653.0,3.84461642]
[1727165142362,4.95078517,2653.7,2653.0,3.76922]
[1727165142569,4.95078517,2653.7,2653.1,3.76913]
[1727165143001,4.95078517,2653.7,2653.3,3.76884]
[1727165143002,1.18236517,2653.7,2653.3,3.76884]
[1727165143417,0.39446517,2653.7,2653.4,3.76872]
[1727165143708,0.39446517,2653.7,2653.4,8.69327895]
[1727165143880,0.39446517,2653.7,2653.4,1.15590895]
[1727165144084,0.7879,2653.6,2652.6,0.8306]
[1727165144283,3.76891,2653.3,2652.7,3.76968]
[1727165144510,3.76891,2653.3,2652.4,0.0383633]
[1727165144511,3.76926,2653.1,2652.4,3.8085033]
[1727165144675,3.76955,2652.9,2652.4,0.0383633]
[1727165145599,4.55734,2653.0,2652.4,3.8085133]
[1727165146183,4.55734,2653.0,2652.4,3.8085233]
[1727165146389,4.55734,2653.0,2652.4,0.0383633]
[1727165146390,4.54272,2652.5,2652.4,0.0383633]
[1727165146605,0.7727,2652.5,2652.4,0.0383633]
[1727165148014,0.7727,2652.7,2652.4,0.0383633]
[1727165149140,0.7727,2652.7,2652.4,3.8085233]
[1727165149471,0.7727,2652.7,2652.5,3.77001]
[1727165149716,0.7727,2652.7,2652.4,0.0383633]
[1727165150508,1.226931,2652.7,2652.4,0.0383633]
[1727165151486,3.76999,2652.6,2652.4,0.0383633]
[1727165154217,3.76997,2652.6,2652.4,0.0383633]
[1727165155447,3.77002,2652.5,2652.4,0.0383633]
[1727165155602,4.54272,2652.5,2652.4,0.0383633]
[1727165155799,5.80963942,2652.5,2652.4,0.0383633]
[1727165156720,7.51598253,2652.5,2652.4,0.0383633]
[1727165156930,5.80963942,2652.5,2652.4,0.0383633]
[1727165157502,6.72918146,2652.5,2652.4,0.0383633]
[1727165157700,7.51602553,2652.5,2652.4,0.0383633]
[1727165158234,6.72918146,2652.5,2652.4,0.0383633]
[1727165160034,7.51602553,2652.5,2652.4,0.0383633]
[1727165162721,7.91377236,2652.5,2652.4,0.0021471]
[1727165163135,9.53476726,2652.5,2652.4,0.0021471]
[1727165163737,9.91981996,2652.5,2652.4,0.00012056]
[1727165164827,9.52595089,2652.5,2652.4,0.00012056]
[1727165165029,7.95495097,2652.5,2652.4,0.00012056]
[1727165165228,9.52558914,2652.5,2652.4,0.00012056]
[1727165165902,9.91945821,2652.5,2652.4,0.00012056]
[1727165166102,9.91843698,2652.5,2652.4,0.00012056]
[1727165167106,7.95487385,2652.5,2652.4,0.00012056]
[1727165167403,9.91882794,2652.5,2652.4,0.00012056]
[1727165167817,7.95387331,2652.5,2652.4,0.00012056]
[1727165168016,12.91882794,2652.5,2652.4,0.00012056]
[1727165168255,10.95387331,2652.5,2652.4,0.00012056]
[1727165168535,12.91958656,2652.5,2652.4,0.00012056]
[1727165170670,9.91958656,2652.5,2652.4,0.00012056]
[1727165170958,9.92251896,2652.5,2652.4,0.00012056]
[1727165171164,9.52913379,2652.5,2652.4,0.00012056]
[1727165174161,7.9554905,2652.5,2652.4,0.00012056]
[1727165174376,9.92251896,2652.5,2652.4,0.00012056]
[1727165175765,9.92333769,2652.5,2652.4,0.00012056]
[1727165177760,3.77068,2652.1,2651.6,4.6257533]
[1727165178067,2.48524499,2652.0,2651.6,0.8545633]
[1727165178250,0.78721555,2652.0,2651.6,0.8545633]
[1727165178462,1.70869107,2651.9,2651.6,0.8545633]
[1727165178764,4.55812555,2651.9,2651.6,0.8545633]
[1727165179064,1.73817844,2651.9,2651.6,0.8545633]
[1727165179230,4.72186289,2651.9,2651.6,0.8545633]
[1727165179431,1.70864845,2651.8,2651.6,0.8545633]
[1727165179767,0.78721555,2651.8,2651.6,0.0383633]
[1727165179969,5.90268622,2651.9,2651.6,0.0383633]
[1727165179970,6.14873918,2651.7,2651.6,0.0383633]
[1727165180574,6.54220222,2651.7,2651.6,0.0383633]
[1727165182068,15.44858791,2651.7,2651.6,0.0383633]
[1727165182270,13.48126501,2651.7,2651.6,0.0383633]
[1727165182472,15.4472245,2651.7,2651.6,0.0383633]
[1727165182952,13.48126501,2651.7,2651.6,0.0383633]
[1727165183270,15.44724056,2651.7,2651.6,0.0383633]
[1727165183480,15.44724056,2651.7,2651.6,0.00224164]
[1727165183481,15.56169262,2651.7,2651.6,0.00224164]
[1727165183632,17.9224801,2651.7,2651.6,0.00224164]
[1727165184468,14.78519262,2651.7,2650.8,0.0383633]
[1727165184676,5.33437343,2650.9,2650.8,0.0383633]
[1727165184871,6.25560214,2650.9,2650.8,0.0383633]
[1727165185174,6.251619,2650.9,2650.8,0.0383633]
[1727165185537,4.5488,2650.9,2650.8,0.0383633]
[1727165185884,6.25123315,2650.9,2650.8,0.0383633]
[1727165186049,7.83973261,2650.9,2650.8,0.0383633]
[1727165186399,11.3482829,2650.9,2650.8,0.0383633]
[1727165187149,11.39271673,2650.9,2650.8,0.0383633]
[1727165187447,11.3476028,2650.9,2650.8,0.0383633]
[1727165188273,12.9638616,2650.9,2650.8,0.0383633]
[1727165188587,10.16992275,2650.9,2650.8,0.0383633]
[1727165188738,11.34762173,2650.9,2650.8,0.0383633]
[1727165188939,11.39222017,2650.9,2650.8,0.0383633]
[1727165189143,11.74106962,2650.9,2650.8,0.0383633]
[1727165189454,11.39276315,2650.9,2650.8,0.0383633]
[1727165189987,11.34758439,2650.9,2650.8,0.0383633]
[1727165190279,12.96380028,2650.9,2650.8,0.0383633]
[1727165190645,11.39265341,2650.9,2650.8,0.0383633]
[1727165191048,12.96380028,2650.9,2650.8,0.0383633]
[1727165191448,11.34739315,2650.9,2650.8,0.0383633]
[1727165192192,8.23214785,2650.9,2650.8,0.0383633]
[1727165192720,8.23214785,2650.9,2650.8,0.00224865]
[1727165193405,7.83934066,2650.9,2650.8,0.00224865]
[1727165194922,8.23161407,2650.9,2650.8,0.00224865]
[1727165196388,0.78493785,2651.1,2650.8,0.77354865]
[1727165196600,3.77223,2651.0,2650.8,0.77354865]
[1727165196805,3.7723,2650.9,2650.8,0.00224865]
[1727165197933,7.5444,2651.0,2650.8,0.00224865]
[1727165198091,3.77216,2651.0,2650.8,0.00224865]
[1727165198953,3.7723,2650.9,2650.8,0.00224865]
[1727165200404,4.60523979,2650.9,2650.8,0.00224865]
[1727165200598,6.30679064,2650.9,2650.8,0.00224865]
[1727165200798,9.81502434,2650.9,2650.8,0.00224865]
[1727165201013,6.69959524,2650.9,2650.8,0.00224865]
[1727165202741,5.52185279,2650.9,2650.8,0.00224865]
[1727165202915,6.69959524,2650.9,2650.8,0.00224865]
[1727165203239,5.52185279,2650.9,2650.8,0.00224865]
[1727165203401,5.86665545,2650.9,2650.8,0.00224865]
[1727165203598,0.78517352,2651.1,2650.8,0.00224865]
[1727165203848,1.70184607,2651.1,2650.8,0.00224865]
[1727165204134,3.77203,2651.1,2650.8,0.00224865]
[1727165204305,4.16630928,2651.2,2650.8,0.00224865]
[1727165206243,0.39434928,2651.2,2650.9,3.9099291]
[1727165206544,0.39434928,2651.2,2651.1,7.6819391]
[1727165206709,0.39434928,2651.2,2651.1,0.7945]
[1727165207041,3.77132,2651.6,2651.1,0.7945]
[1727165207425,4.55636352,2651.7,2651.1,4.5665]
[1727165208438,1.70267078,2651.6,2651.1,4.5665]
[1727165208647,4.55636352,2651.7,2651.1,5.34558129]
[1727165208865,1.70269152,2651.6,2651.1,5.34558129]
[1727165209041,1.70269152,2651.6,2651.1,1.57358129]
[1727165209243,0.78517352,2651.6,2651.2,3.77186]
[1727165209453,1.70267037,2651.6,2651.2,3.77186]
[1727165210130,1.70267037,2651.6,2651.1,1.57358129]
[1727165210330,1.70267037,2651.6,2651.1,5.34558129]
[1727165210737,5.47419037,2651.5,2651.1,0.7945]
[1727165211036,3.77168,2651.4,2651.1,0.7945]
[1727165211499,4.55685352,2651.4,2651.1,0.7945]
[1727165211916,4.55669352,2651.5,2651.1,0.7945]
[1727165212239,0.91775661,2651.4,2651.1,0.7945]
[1727165212440,8.32823352,2651.5,2651.1,0.7945]
[1727165212631,0.91784657,2651.4,2651.1,0.7945]
[1727165212822,4.55669352,2651.5,2651.1,0.7945]
[1727165213020,0.91781362,2651.4,2651.1,0.7945]
[1727165213221,4.55669352,2651.5,2651.1,0.7945]
[1727165213433,5.7440868,2651.5,2651.1,0.7945]
[1727165213815,1.70308762,2651.4,2651.1,0.7945]
[1727165214016,0.78517352,2651.5,2651.1,4.5665]
[1727165214247,0.78517352,2651.6,2651.1,4.5665]
[1727165214458,5.47450921,2651.6,2651.1,4.5665]
[1727165214662,4.55656352,2651.6,2651.1,4.5665]
[1727165214818,1.70322233,2651.5,2651.1,4.5665]
[1727165215018,0.78517352,2651.5,2651.1,4.5665]
[1727165216059,4.55662352,2651.5,2651.1,0.7945]
[1727165216274,5.59899488,2651.5,2651.1,0.7945]
[1727165217957,0.91852949,2651.4,2651.1,0.7945]
[1727165218264,5.59899488,2651.5,2651.1,0.7945]
[1727165218466,1.7037218,2651.4,2651.1,0.7945]
[1727165219006,0.78517352,2651.4,2651.1,0.7945]
[1727165219126,2.38169439,2651.4,2651.1,0.7945]
[1727165219324,1.46284725,2651.4,2651.1,0.7945]
[1727165220032,0.91919102,2651.3,2651.1,0.7945]
[1727165220341,0.78517352,2651.3,2651.1,0.7945]
[1727165220849,1.70446247,2651.3,2651.1,0.7945]
[1727165221655,4.55711352,2651.2,2650.9,0.8332]
[1727165221968,1.70464561,2651.1,2650.9,0.8332]
[1727165222173,5.47674561,2651.1,2650.8,0.00224865]
[1727165222330,1.70461472,2651.0,2650.8,0.00224865]
[1727165222742,0.78517352,2651.0,2650.8,0.00224865]
[1727165223394,1.70494281,2651.0,2650.8,0.00224865]
[1727165223575,1.70522143,2650.9,2650.8,0.00224865]
[1727165224564,0.92004791,2650.9,2650.8,0.00224865]
[1727165224774,2.84190008,2650.9,2650.8,0.00224865]
[1727165225554,6.61420008,2650.9,2650.8,0.00224865]
[1727165225751,6.66372531,2650.9,2650.8,0.00224865]
[1727165225953,8.63271598,2650.9,2650.8,0.00224865]
[1727165226455,6.66372531,2650.9,2650.8,0.00224865]
[1727165227192,6.66415063,2650.9,2650.8,0.00224865]
[1727165228698,8.6360489,2650.9,2650.8,0.00224865]
[1727165232297,8.63614418,2650.9,2650.8,0.00224865]
[1727165232697,6.66415063,2650.9,2650.8,0.00224865]
[1727165234574,8.19447942,2650.9,2650.8,0.00224865]
[1727165234965,6.66415063,2650.9,2650.8,0.00224865]
[1727165235869,10.55988332,2650.9,2650.8,0.00224865]
[1727165236090,13.67531242,2650.9,2650.8,0.00224865]
[1727165236297,12.07489593,2650.9,2650.8,0.00013724]
[1727165238278,12.07489593,2650.9,2650.0,0.8715633]
[1727165238279,3.77344,2650.1,2650.0,0.0383633]
[1727165238469,7.49758475,2650.1,2650.0,0.0383633]